[Event "43rd Blackpool Chess Conference 2019"]
[Site "Blackpool"]
[Date "2019.03.10"]
[Round "5.12"]
[White "Boswell, Jacob Connor"]
[Black "Camp, Imogen A L"]
[Result "1/2-1/2"]
[ECO "C97"]
[WhiteElo "2043"]
[BlackElo "1827"]
[Annotator "NA"]
[PlyCount "47"]
[EventDate "2019.03.08"]
[EventType "swiss"]
[EventCountry "ENG"]
[SourceTitle "playchess.com"]
[Source "ChessBase"]
[SourceQuality "1"]
[TimeControl "6600+10"]

{[%evp 24,44,48,20,25,32767,15,5,32767,0,7,0,-4,-11,19,-1,-13,0,32767,0,-10,-18,-12]} 1. e4 {[%emt 0:00:00]} e5 {[%emt 0:00:00]} 2. Nf3 {[%emt 0:00:00]} Nc6 {[%emt 0:00:00]} 3. Bb5 {[%emt 0:00:06]} a6 {[%emt 0:00:00]} 4. Ba4 {[%emt 0:00:07]} Nf6 {[%emt 0:00:17]} 5. O-O {[%emt 0:00:10]} Be7 {[%emt 0:00:06]} 6. Re1 {[%emt 0:00:15]} b5 {[%emt 0:00:07]} 7. Bb3 {[%emt 0:00:05]} d6 {[%emt 0:00:19]} 8. h3 {[%emt 0:00:08]} O-O {[%emt 0:00:10]} 9. c3 {[%emt 0:00:05]} Na5 {[%emt 0:00:13]} 10. Bc2 {[%emt 0:00:08]} c5 {[%emt 0:00:08]} 11. d4 {[%emt 0:00:16]} Qc7 {[%emt 0:01:07]} 12. d5 {[%emt 0:00:39]} Nc4 {[%emt 0:07:57] LiveBook: 116 Games} 13. a4 {[%emt 0:05:27]} Bd7 {[%emt 0:03:17]} 14. b3 {[%emt 0:03:14]} Na5 {[%emt 0:02:04]} 15. b4 {[%emt 0:02:21] C97: Closed Ruy Lopez: Chigorin Defence: 11 d4 Qc7, sidelines} (15. Nbd2 bxa4 16. bxa4 g6 17. Nf1 Nh5 18. Ne3 Rab8 19. Nd2 Ng7 20. Qe2 Bc8 21. Nec4 Nxc4 22. Nxc4 f5 {1-0 (39) Anand,V (2792)-Hjartarson,J (2619) Reykjavik 2006}) 15... Nc4 {[%emt 0:01:58]} 16. a5 $146 {[%emt 0:00:23]} ({Predecessor:} 16. Nbd2 cxb4 17. cxb4 Rfc8 18. Bb3 Qb7 19. a5 g6 20. Qe2 Nxd2 21. Bxd2 Nh5 22. g4 Ng7 {½-½ (40) Ioseliani,N (2295)-Liu,S Velden 1983}) 16... Ne8 {[%emt 0:03:30]} 17. Na3 {[%emt 0:20:15]} Nxa3 {[%emt 0:04:08]} 18. Rxa3 {[%emt 0:03:05]} f5 {[%emt 0:06:02]} 19. exf5 {[%emt 0:00:05]} Bxf5 {[%emt 0:00:27]} 20. Bxf5 {[%emt 0:01:02]} Rxf5 {[%emt 0:00:13]} 21. Qd3 {[%emt 0:02:39]} Rf8 {[%emt 0:02:34]} 22. Be3 {[%emt 0:00:51]} c4 $11 {[%emt 0:04:35]} 23. Qd2 {[%emt 0:02:24]} Qd7 {[%emt 0:03:26]} 24. Bg5 {[%emt 0:05:53]} 1/2-1/2